Cogmind - Beta 10.2 @@@ ROGUE MODE // 2021.11.06 @ 12:55:52 Player: SURFACESEEKER Result: Destroyed by P-70 Sage with Backup Laser III Performance ------------- Evolutions (6) 3000 Regions Visited (16) 3200 Robots Destroyed (173) 865 Value Destroyed (6572) 6572 Prototype IDs (5) 100 Alien Tech Used (0) 0 Bonus (749) 749 TOTAL SCORE: 14486 Bonus ------- High Alert Combat Kills 102 Follower Combat Kills 347 Met Data Miner 300 Cogmind --------- Core Integrity 0/1150 Matter 270/300 Energy 99/100 System Corruption 16% Temperature Cool (18) Movement Core (50) Location -4/Factory Parts ------- > --- POWER (3) -------- (None) > --- PROPULSION (6) --- (None) > --- UTILITY (6) ------ (None) > --- WEAPON (4) ------- (None) > --- INVENTORY (4) ---- (None) Peak State ------------ > --- POWER ------------ Light Fission Core Micro Fission Core Micro Fission Core > --- PROPULSION ------- Carbon-fiber Leg Flexi-carbon Leg Flexi-carbon Leg Armored Leg Armored Leg > --- UTILITY ---------- Advanced Heat Sink High-capacity Storage Unit Advanced Terrain Scan Processor Improved Maneuvering Thrusters Layered Medium Armor Plating > --- WEAPON ----------- KE Penetrator KE Penetrator Proton Missile Launcher Proton Missile Launcher > --- INVENTORY -------- Improved Deuterium Engine Reinforced Deuterium Engine Micro Fission Core Carbon-fiber Leg Carbon-fiber Leg Advanced Heat Sink Compact Matter Pod Makeshift System Restoration Module High-powered Shock Rifle Heavy Ion Cannon Heavy Machine Gun Magnetic Acceleration Cannon [Rating: 85] Favorites ----------- Power Micro Fission Core Engine Light Deuterium Engine Power Core Micro Fission Core Reactor Cold Fusion Reactor Propulsion Light Treads Treads Light Treads Leg Carbon-fiber Leg Wheel Armored Wheel Hover Unit Backup Propulsion III Utility Large Storage Unit Device Advanced Terrain Scanner Storage Large Storage Unit Processor Seismic Analyzer Hackware Hacking Suite Protection Improved Core Shielding Weapon Gauss Cannon Energy Gun Heavy Laser Energy Cannon Plasma Cannon Ballistic Gun Heavy Assault Rifle Ballistic Cannon Gauss Cannon Launcher Proton Missile Launcher Special Weapon Improved Remote Datajack Impact Weapon Heavy Mace Slashing Weapon Makeshift Axe Build | -11 -10 -10 -9 -9 -8 -7 -7 -7 -7 -6 -6 -6 -5 -5 -5 -4 ------- Run | Scr Mat Min Mat Min Mat Fac Low Low Dat Pro Fac Ext Fac Was Fac Fac Slots Evolved 12 | . . . 2 . 2 2 . . . . 2 . 2 . . 2 Power 2 | . . . . . . 1 . . . . 1 . . . . . Propulsion 4 | . . . . . 2 . . . . . . . 1 . . 1 Utility 4 | . . . 2 . . . . . . . 1 . . . . 1 Weapon 2 | . . . . . . 1 . . . . . . 1 . . . Parts Attached 290 | 7 . . 9 3 12 16 11 8 . 20 43 52 14 4 69 22 Power 49 | 1 . . 2 . 3 4 3 . . 4 8 7 2 1 9 5 Engine 25 | 1 . . 2 . 3 2 1 . . 2 4 5 . 1 4 . Core 18 | . . . . . . 2 2 . . . 1 2 2 . 5 4 Reactor 6 | . . . . . . . . . . 2 3 . . . . 1 Propulsion 70 | 2 . . 2 . 3 7 2 6 . 6 5 13 2 . 18 4 Treads 24 | . . . 2 . 1 3 . 3 . 2 1 3 . . 7 2 Leg 39 | 2 . . . . 2 2 2 3 . 4 . 9 2 . 11 2 Wheel 7 | . . . . . . 2 . . . . 4 1 . . . . Hover . | . . . . . . . . . . . . . . . . . Flight . | . . . . . . . . . . . . . . . . . Utility 76 | 2 . . 2 2 3 2 1 2 . 4 17 10 4 1 19 7 Device 53 | 1 . . 1 2 2 2 1 2 . 4 13 6 4 . 10 5 Storage 4 | . . . 1 . . . . . . . . 1 . . 1 1 Processor 5 | 1 . . . . . . . . . . 2 . . . 2 . Hackware 1 | . . . . . . . . . . . 1 . . . . . Protection 13 | . . . . . 1 . . . . . 1 3 . 1 6 1 Artifact . | . . . . . . . . . . . . . . . . . Weapon 95 | 2 . . 3 1 3 3 5 . . 6 13 22 6 2 23 6 Energy Gun 26 | 1 . . . . . . . . . 2 5 7 1 . 7 3 Energy Cannon 13 | . . . . . 1 1 1 . . 1 3 2 2 . 1 1 Ballistic Gun 29 | 1 . . 3 . 1 1 1 . . 2 5 4 3 . 7 1 Ballistic Cannon 10 | . . . . 1 1 1 2 . . . . . . 1 4 . Launcher 6 | . . . . . . . . . . . . 5 . 1 . . Special Weapon 5 | . . . . . . . . . . . . 2 . . 3 . Impact Weapon 2 | . . . . . . . . . . . . . . . 1 1 Slashing Weapon 4 | . . . . . . . 1 . . 1 . 2 . . . . Piercing Weapon . | . . . . . . . . . . . . . . . . . Special Melee Weapon . | . . . . . . . . . . . . . . . . . Unidentified Prototypes 5 | . . . . . . . . . . 1 3 . . . . 1 Parts Lost 133 | . . . 4 . 2 8 7 2 . 15 9 15 3 8 20 40 Power 23 | . . . 1 . . 3 3 . . 3 3 . . 1 2 7 Propulsion 32 | . . . . . 1 4 1 2 . 6 . 2 1 2 3 10 Utility 31 | . . . . . 1 . 1 . . . 3 5 1 3 5 12 Weapon 47 | . . . 3 . . 1 2 . . 6 3 8 1 2 10 11 Highest Loss Streak 26 | . . . 3 . 2 3 3 2 . 8 6 5 1 7 6 26 Average Slot Usage (%) 91 | . 100 100 90 100 94 80 91 99 100 89 88 93 97 68 85 52 Engine 6 | . 14 14 8 11 8 9 6 7 7 4 6 8 5 1 4 . Core 4 | . . . . . . 3 4 7 7 1 2 3 8 11 8 8 Reactor 1 | . . . . . . . . . . 5 2 6 . . . . Treads 11 | . . . 4 22 23 7 23 17 15 4 1 . . . 10 2 Leg 11 | . 28 28 17 . 8 8 2 12 15 20 6 21 29 18 12 7 Wheel 1 | . . . . . . 2 . . . . 17 2 . . . . Device 14 | . 14 14 20 22 12 15 14 15 15 14 18 11 11 8 8 6 Storage 6 | . . . 11 11 9 7 7 7 7 7 6 4 5 3 4 4 Processor 6 | . 14 14 11 11 9 7 7 7 7 7 6 6 5 5 3 4 Protection 1 | . . . . . 4 . . . . . . 3 4 2 6 2 Energy Gun 2 | . 14 14 . . . . . . . 4 5 3 1 . 5 2 Energy Cannon 3 | . . . . . . 1 7 7 7 6 2 1 1 . . . Ballistic Gun 6 | . 14 14 15 17 9 9 4 . . . 7 5 7 10 8 1 Ballistic Cannon 5 | . . . . 4 9 4 8 15 15 2 . . . 2 2 2 Naked Turns 27 | . . . . . . . . . . . . . . 9 . 18 Heaviest Build 105 | 10 10 10 31 35 35 43 55 53 49 62 78 105 98 83 75 61 Greatest Support 151 | 20 20 20 40 40 60 60 60 60 33 68 63 67 87 87 151 97 Greatest Overweight (x) 17 | . . . 1 . 11 3 . 1 1 1 4 17 1 10 6 13 Average Overweight (x) . | . . . . . . 1 . . 1 . . . . . . . Largest Inventory Capacity 12 | 4 4 4 10 10 10 10 10 10 10 10 10 12 12 12 10 10 Average Capacity 9 | 4 4 4 10 10 10 10 10 10 10 10 10 9 12 9 9 9 Most Carried 12 | 4 4 4 5 10 10 10 10 10 10 10 10 12 12 12 10 9 Average Carried 8 | 2 4 3 2 8 9 8 8 8 10 9 9 8 11 9 8 4 Final Capacity 12 | 4 4 4 10 10 10 10 10 10 10 10 10 12 12 4 10 4 Final Carried 12 | 4 4 4 3 10 9 9 6 10 10 9 10 12 12 3 9 . Class Distribution -------------------- 42% | Scavenger-Skirmisher 35% | Scavenger-Mutant 6% | Mutant 5% | Scavenger-Assassin 4% | Scavenger-Tank Dominant Class ---------------- Mutant | -10/Materials Mutant | -10/Mines Scavenger-Mutant | -9/Materials Scavenger-Mutant | -9/Mines Scavenger-Mutant | -8/Materials Scavenger-Mutant | -7/Factory Scavenger-Skirmisher | -7/Lower Caves Scavenger-Skirmisher | -7/Lower Caves Scavenger-Skirmisher | -7/Data Miner Scavenger-Assassin | -6/Proximity Caves Scavenger-Mutant | -6/Factory Scavenger-Mutant | -6/Extension Scavenger-Mutant | -5/Factory Scavenger-Skirmisher | -5/Waste Scavenger-Mutant | -5/Factory Scavenger-Mutant | -4/Factory Resources | -11 -10 -10 -9 -9 -8 -7 -7 -7 -7 -6 -6 -6 -5 -5 -5 -4 ----------- Run | Scr Mat Min Mat Min Mat Fac Low Low Dat Pro Fac Ext Fac Was Fac Fac Matter Collected 7068 | 284 . 81 233 84 310 597 158 274 . 276 850 854 674 127 1940 326 Remotely . | . . . . . . . . . . . . . . . . . Salvage Created 7884 | 88 . 161 338 121 352 516 261 210 . 625 930 871 720 . 2270 421 Parts 387 | 8 . 5 23 7 20 24 10 7 . 14 52 42 35 . 129 11 Haulers Intercepted 3 | . . . . . 1 . . . . . 1 . . . 1 . Recyclers Shooed 9 | . . . . . 2 . . . . . 1 1 1 . 4 . Parts Field Recycled 5 | . . . . . . . . . . . 5 . . . . . Retrieved Matter 18 | . . . . . . . . . . . 18 . . . . . Parts Self-Destructed 24 | . . . . . . . 7 4 . 13 . . . . . . Prevented . | . . . . . . . . . . . . . . . . . Kills | -11 -10 -10 -9 -9 -8 -7 -7 -7 -7 -6 -6 -6 -5 -5 -5 -4 ------- Run | Scr Mat Min Mat Min Mat Fac Low Low Dat Pro Fac Ext Fac Was Fac Fac Combat Hostiles Destroyed 129 | . . 6 8 3 10 8 5 5 . 8 15 16 5 . 34 6 Melee 9 | . . . . . . . 3 . . 2 1 1 . . 2 . Guns 80 | . . 5 8 3 7 4 . . . 2 13 9 3 . 24 2 Cannons 29 | . . . . . 3 4 2 5 . 4 1 1 . . 8 1 AOE 5 | . . 1 . . . . . . . . . 4 . . . . Classes Destroyed 17 | 1 . 3 3 . 4 1 1 2 . . . 2 . . . . Worker 15 | . . . . . . 2 . . . . 4 . 4 . 5 . Builder 11 | . . . . . 1 . . . . . 2 2 4 . 2 . Tunneler 5 | 4 . . . 1 . . . . . . . . . . . . Hauler 3 | . . . . . 1 . . . . . 1 . . . 1 . Recycler 5 | . . . . . 1 2 . . . . . . 1 . 1 . Mechanic 1 | . . . 1 . . . . . . . . . . . . . Watcher 5 | . . . 1 . 1 . . . . . . 1 . . 2 . Swarmer 30 | . . 3 3 . 6 3 . . . 1 2 6 . . 6 . Grunt 55 | . . 2 2 3 3 3 4 3 . 7 6 8 . . 12 2 Brawler 4 | . . . . . 1 . . . . . 1 . . . 1 1 Duelist 1 | . . . . . . . . . . . . 1 . . . . Sentry 16 | . . . 3 . . 2 . . . . 1 . 5 . 3 2 Hunter 3 | . . . . . . . 1 1 . . . . . . 1 . Programmer 18 | . . . . . . . . 1 . . 5 . . . 11 1 Behemoth 1 | . . . . . . . . . . . . 1 . . . . Samaritan 1 | . . . . . . . . 1 . . . . . . . . Assembled 1 | . . 1 . . . . . . . . . . . . . . Best Kill Streak 9 | 3 . 3 5 3 5 3 3 2 . 3 9 3 6 . 5 2 Combat Bots Only 5 | . . 3 5 3 3 2 3 2 . 3 5 3 2 . 3 2 Max Kills in Single Turn 2 | 1 . 2 1 1 2 2 1 1 . 1 2 2 2 . 2 1 Gunslinging . | . . . . . . . . . . . . . . . . . Exploded 2 | . . 1 . . . . . . . . . 2 . . . . Melee 1 | . . . . . . . 1 . . 1 1 1 . . 1 . Uniques/NPCs Destroyed . | . . . . . . . . . . . . . . . . . Combat | -11 -10 -10 -9 -9 -8 -7 -7 -7 -7 -6 -6 -6 -5 -5 -5 -4 -------- Run | Scr Mat Min Mat Min Mat Fac Low Low Dat Pro Fac Ext Fac Was Fac Fac Damage Taken 19368 | . 10 242 521 140 582 939 757 276 . 1833 1444 2211 899 339 5151 4024 Core 3170 | . . 52 126 11 65 125 51 47 . 363 289 117 73 197 493 1161 Absorbed by Shields 235 | . . . . . . . . . . . . . . . . 235 Core Remaining (%) 60 | 100 . 79 . 65 88 . . . . 16 . 52 . . 23 . Volleys Fired 629 | 19 . 15 52 8 52 32 10 17 . 30 83 61 54 9 156 31 Largest 4 | 2 . 2 2 2 2 3 3 3 . 3 3 3 4 4 4 2 Hottest 272 | 60 . 60 60 48 83 131 188 176 . 197 173 193 168 155 272 125 Shots Fired 1371 | 38 . 30 69 15 104 69 24 51 . 53 205 142 111 34 387 39 Gun 931 | 38 . 30 69 14 52 44 3 . . 25 177 70 71 25 286 27 Cannon 352 | . . . . 1 52 25 21 51 . 28 28 36 16 5 77 12 Launcher 63 | . . . . . . . . . . . . 35 24 4 . . Special 25 | . . . . . . . . . . . . 1 . . 24 . Kinetic 801 | 19 . 15 67 15 102 66 12 34 . 17 87 40 69 30 220 8 Thermal 423 | . . . . . 2 3 12 17 . 36 109 65 16 . 140 23 Explosive . | . . . . . . . . . . . . . . . . . Electromagnetic 123 | 19 . 15 2 . . . . . . . 9 37 26 4 3 8 Robot Hit Streak 23 | 4 . 5 6 10 10 5 13 15 . 9 14 10 12 3 23 11 Robot Miss Streak 10 | 4 . 3 4 1 4 5 1 2 . 2 8 10 2 3 5 2 Penetration Max 1 | . . . . . . . . . . 1 . . 1 . 1 . Secondary Targets 6 | . . . . . . . . . . 1 2 . . . 3 . Max Gunslinging Chain 1 | . . . . . . . . . . 1 1 . . . 1 . Shots Hit Robots 874 | 20 . 16 46 11 53 37 27 35 . 47 118 97 54 18 251 44 Core Hits 374 | 5 . 8 15 5 17 20 10 10 . 21 65 63 25 3 93 14 Critical Hits 67 | . . . 2 1 . 3 3 4 . 7 . 3 2 1 40 1 Critical Kills 26 | . . . . 1 . 3 1 2 . 1 . 1 1 . 15 1 Critical Parts Destroyed 35 | . . . 2 . . . 2 2 . 6 . 2 1 . 20 . Melee Attacks 47 | . . . . . . . 11 . . 15 5 4 . . . 12 Impact 12 | . . . . . . . . . . . . . . . . 12 Slashing 35 | . . . . . . . 11 . . 15 5 4 . . . . Piercing . | . . . . . . . . . . . . . . . . . Sneak Attacks 1 | . . . . . . . . . . . . 1 . . . . Combat Hostiles . | . . . . . . . . . . . . . . . . . Follow-up Attacks . | . . . . . . . . . . . . . . . . . Damage Inflicted 18409 | 282 . 285 611 180 1015 795 650 804 . 1363 2246 2351 1528 453 4537 1309 Guns 10197 | 282 . 200 611 170 451 466 25 . . 219 1807 948 859 353 3312 494 Cannons 4947 | . . . . . 562 312 378 804 . 519 338 305 136 88 1138 367 Explosions 1664 | . . 84 . . . . . . . . 2 858 533 12 43 132 Melee 1460 | . . . . . . . 247 . . 625 83 225 . . . 280 Ramming 130 | . . 1 . 10 2 17 . . . . 16 4 . . 44 36 Kinetic 8798 | 148 . 82 596 170 1013 731 193 517 . 137 901 635 818 441 2147 269 Thermal 6191 | . . 84 . . . 47 210 287 . 601 1201 743 224 . 2250 544 Explosive . | . . . . . . . . . . . . . . . . . Electromagnetic 1830 | 134 . 118 15 . . . . . . . 45 744 486 12 96 180 Impact 280 | . . . . . . . . . . . . . . . . 280 Slashing 1180 | . . . . . . . 247 . . 625 83 225 . . . . Piercing . | . . . . . . . . . . . . . . . . . Highest Corruption 20 | . . . . . . . . 2 . . 4 3 1 1 20 16 Average Corruption 6 | . . . . . . . . 1 . . 2 1 1 1 11 10 Corruption Purged 10 | . . . . . . . . 2 . . 4 3 . 1 . . Effects 165 | . . . . . . . . 13 . . 5 5 3 . 125 14 Message Errors 38 | . . . . . . . . 7 . . 2 1 1 . 25 2 Matter Fused 18 | . . . . . . . . . . . 1 1 . . 16 . Heat Flow Errors 15 | . . . . . . . . 2 . . . . . . 12 1 Energy Discharges 16 | . . . . . . . . 1 . . 1 . 1 . 10 3 Data Loss (minor) 13 | . . . . . . . . 1 . . . 1 . . 11 . Data Loss (major) 6 | . . . . . . . . . . . . . . . 4 2 Misfires 4 | . . . . . . . . . . . . . . . 4 . Misdirections 14 | . . . . . . . . . . . . . . . 11 3 Targeting Errors 34 | . . . . . . . . 2 . . 1 2 1 . 25 3 Weapon Failures 7 | . . . . . . . . . . . . . . . 7 . Overload Shots . | . . . . . . . . . . . . . . . . . Overflow Damage 711 | . . . . . 33 . . 49 . 61 . 187 83 . 52 246 Projectiles 121 | . . . . . 33 . . 49 . . . . . . 39 . Explosions 390 | . . . . . . . . . . . . 79 83 . . 228 Melee 200 | . . . . . . . . . . 61 . 108 . . 13 18 Knockbacks 26 | . . . . . 7 2 . 5 . 1 . . . . 11 . Impact . | . . . . . . . . . . . . . . . . . Kinetic 25 | . . . . . 7 1 . 5 . 1 . . . . 11 . Secondary 1 | . . . . . . 1 . . . . . . . . . . Self-Inflicted Damage 365 | . . 10 . . . 8 . . . . 7 6 201 . 19 114 Shots 12 | . . 1 . . . . . . . . . 1 8 . 1 1 Rammed 29 | . . 2 . 2 1 5 . . . . 2 1 . . 6 10 Targets Rammed 36 | . . 2 . 3 2 5 . . . . 2 1 . . 9 12 Kicked 3 | . . . . . . . . . . . . . . . 1 2 Crushed 4 | . . . . 1 1 . . . . . . . . . 2 . Highest Temperature 689 | . . 69 3 . 12 75 111 442 . 378 201 396 142 108 689 246 Average Temperature 102 | . . 39 3 . 6 29 46 136 . 161 49 77 42 35 129 116 Received Heat Transfer 3523 | . . 120 219 78 81 279 177 72 . 561 213 540 108 . 444 631 Effects 45 | . . . . . . . . 2 . 8 . 3 . . 32 . Shutdowns 14 | . . . . . . . . 1 . 1 . . . . 12 . Energy Bleed 9 | . . . . . . . . 1 . 3 . . . . 5 . Interference 13 | . . . . . . . . . . 3 . 3 . . 7 . Matter Decay 2 | . . . . . . . . . . 1 . . . . 1 . Damage (minor) 1 | . . . . . . . . . . . . . . . 1 . Damage (major) 4 | . . . . . . . . . . . . . . . 4 . Damage (core) 2 | . . . . . . . . . . . . . . . 2 . Siege Activations . | . . . . . . . . . . . . . . . . . Robots Corrupted 4 | . . . . . . . . . . . . 1 2 . . 1 Combat Hostiles 4 | . . . . . . . . . . . . 1 2 . . 1 Parts Fried 9 | . . 1 . . . . . . . . . 2 3 . . 3 Impact Corruptions 2 | . . . . . . . . . . . . . . . 1 1 Robots Melted 1 | . . . . . . . . . . . . . . . . 1 Combat Hostiles 1 | . . . . . . . . . . . . . . . . 1 Parts Melted 12 | . . . . . . . . 1 . 1 3 1 1 . 3 2 Heat Transferred 9368 | . . 100 . . . 74 361 550 . 796 1760 1085 285 . 3491 866 Parts Sabotaged . | . . . . . . . . . . . . . . . . . Parts Stolen . | . . . . . . . . . . . . . . . . . Parts Stripped . | . . . . . . . . . . . . . . . . . Power Chain Reactions 7 | . . 1 . . . . . . . . . 6 . . . . Missiles Intercepted . | . . . . . . . . . . . . . . . . . Alert | -11 -10 -10 -9 -9 -8 -7 -7 -7 -7 -6 -6 -6 -5 -5 -5 -4 ------- Run | Scr Mat Min Mat Min Mat Fac Low Low Dat Pro Fac Ext Fac Was Fac Fac Peak Influence 567 | 20 42 166 302 117 418 250 . . . . 298 330 300 130 567 295 Initial 263 | . 13 16 . 117 . 124 . . . . . 145 65 105 45 263 Average 157 | 6 23 106 149 31 149 159 . . . . 68 164 111 96 323 189 Maximum Alert Level 2 | . . . 1 . 2 1 . . . . 1 1 1 . 2 1 Low Security (%) 71 | 100 100 100 64 100 59 66 . . . . 96 72 84 100 33 46 Level 1 17 | . . . 35 . 26 33 . . . . 3 27 15 . 22 53 Level 2 11 | . . . . . 14 . . . . . . . . . 43 . Level 3 . | . . . . . . . . . . . . . . . . . Level 4 . | . . . . . . . . . . . . . . . . . Level 5 . | . . . . . . . . . . . . . . . . . High Security . | . . . . . . . . . . . . . . . . . Max Security . | . . . . . . . . . . . . . . . . . Squads Dispatched 27 | . . . 2 1 1 1 . . . . 5 4 4 . 8 1 Investigation 2 | . . . . 1 . . . . . . . 1 . . . . Extermination 11 | . . . . . . 1 . . . . 3 . 1 . 5 1 Reinforcement 13 | . . . 2 . 1 . . . . . 2 3 2 . 3 . Assault . | . . . . . . . . . . . . . . . . . Garrison 1 | . . . . . . . . . . . . . 1 . . . Intercept . | . . . . . . . . . . . . . . . . . Construction Impeded 5 | . . . . . . . . . . . . 1 2 . 2 . Haulers Reinforced 1 | . . . . . . . . . . . 1 . . . . . Stealth | -11 -10 -10 -9 -9 -8 -7 -7 -7 -7 -6 -6 -6 -5 -5 -5 -4 --------- Run | Scr Mat Min Mat Min Mat Fac Low Low Dat Pro Fac Ext Fac Was Fac Fac Distress Signals 10 | . 1 . . . 3 . . . . . 2 1 1 . 2 . Communications Jammed . | . . . . . . . . . . . . . . . . . Distress Signals . | . . . . . . . . . . . . . . . . . Times Spotted 216 | . 5 5 17 3 22 11 9 7 . 11 23 25 6 6 55 11 Peak Tracking Total 6 | . 5 3 6 3 6 5 4 3 . 4 5 4 2 6 6 6 Tactical Retreats 29 | . . . 3 . 4 2 4 2 . 2 1 3 . 1 6 1 Traps | -11 -10 -10 -9 -9 -8 -7 -7 -7 -7 -6 -6 -6 -5 -5 -5 -4 ------- Run | Scr Mat Min Mat Min Mat Fac Low Low Dat Pro Fac Ext Fac Was Fac Fac Traps Triggered 4 | . . . . . . . . . . . 1 1 1 . 1 . Indirectly . | . . . . . . . . . . . . . . . . . Trap Hack Attempts . | . . . . . . . . . . . . . . . . . Triggered . | . . . . . . . . . . . . . . . . . Disarmed . | . . . . . . . . . . . . . . . . . Reprogrammed . | . . . . . . . . . . . . . . . . . Reused . | . . . . . . . . . . . . . . . . . Traps Extracted . | . . . . . . . . . . . . . . . . . Installed . | . . . . . . . . . . . . . . . . . Triggered 2 | . . . . . . . . . . 2 . . . . . . Machines | -11 -10 -10 -9 -9 -8 -7 -7 -7 -7 -6 -6 -6 -5 -5 -5 -4 ---------- Run | Scr Mat Min Mat Min Mat Fac Low Low Dat Pro Fac Ext Fac Was Fac Fac Machines Disabled 33 | . . 2 1 1 2 . . . . . 6 5 6 . 8 2 Max in Single Turn 5 | . . 2 1 1 1 . . . . . 2 2 4 . 5 2 Energy Cycler 1 | . . . . . . . . . . . . 1 . . . . Machines Sabotaged . | . . . . . . . . . . . . . . . . . Garrisons Compromised . | . . . . . . . . . . . . . . . . . Overloaded Fab Kills . | . . . . . . . . . . . . . . . . . Fab Network Shutdowns . | . . . . . . . . . . . . . . . . . Hacking | -11 -10 -10 -9 -9 -8 -7 -7 -7 -7 -6 -6 -6 -5 -5 -5 -4 --------- Run | Scr Mat Min Mat Min Mat Fac Low Low Dat Pro Fac Ext Fac Was Fac Fac Machines Accessed 23 | . 3 . . 1 4 . . 1 1 . 2 2 2 . 6 1 Terminals 13 | . 3 . . . 2 . . . . . 2 2 2 . 2 . Fabricators 2 | . . . . . . . . . . . . . . . 2 . Repair Stations 3 | . . . . . 1 . . . . . . . . . 1 1 Recycling Units 1 | . . . . . . . . . . . . . . . 1 . Scanalyzers 1 | . . . . . 1 . . . . . . . . . . . Garrison Access . | . . . . . . . . . . . . . . . . . Total Hacks 58 | . 7 . . 1 12 . . 1 6 . 5 7 3 . 15 1 Successful 36 | . 5 . . 1 7 . . 1 6 . 4 5 2 . 4 1 Failed 22 | . 2 . . . 5 . . . . . 1 2 1 . 11 . Catastrophic 1 | . . . . . . . . . . . . 1 . . . . Database Lockouts . | . . . . . . . . . . . . . . . . . Manual 35 | . 6 . . . 6 . . 3 . . 8 3 4 . 5 . Terminals 32 | . 7 . . . 6 . . . . . 5 7 3 . 4 . Fabricators 5 | . . . . . . . . . . . . . . . 5 . Repair Stations 6 | . . . . . 3 . . . . . . . . . 2 1 Recycling Units 4 | . . . . . . . . . . . . . . . 4 . Scanalyzers 3 | . . . . . 3 . . . . . . . . . . . Garrison Access . | . . . . . . . . . . . . . . . . . Terminal Hacks 13 | . 1 . . 1 . . . 1 6 . 1 3 . . . . Record 9 | . . . . . . . . . 6 . . 3 . . . . Open Door 3 | . . . . 1 . . . 1 . . 1 . . . . . Zone Layout 1 | . 1 . . . . . . . . . . . . . . . Fabricator Hacks 2 | . . . . . . . . . . . . . . . 2 . Load Schematic 2 | . . . . . . . . . . . . . . . 2 . Repair Station Hacks 3 | . . . . . 1 . . . . . . . . . 1 1 Scan Component 2 | . . . . . 1 . . . . . . . . . 1 . Refit 1 | . . . . . . . . . . . . . . . . 1 Recycling Unit Hacks . | . . . . . . . . . . . . . . . . . Scanalyzer 2 | . . . . . 2 . . . . . . . . . . . Insert Component 1 | . . . . . 1 . . . . . . . . . . . Analyze 1 | . . . . . 1 . . . . . . . . . . . Garrison Access Hacks . | . . . . . . . . . . . . . . . . . Unauthorized Hacks 15 | . 4 . . . 4 . . . . . 2 2 2 . 1 . Terminals 15 | . 4 . . . 4 . . . . . 2 2 2 . 1 . Track 7 | . 2 . . . 1 . . . . . 1 1 1 . 1 . Assimilate 1 | . . . . . 1 . . . . . . . . . . . Botnet 7 | . 2 . . . 2 . . . . . 1 1 1 . . . Fabricators . | . . . . . . . . . . . . . . . . . Repair Stations . | . . . . . . . . . . . . . . . . . Recycling Units . | . . . . . . . . . . . . . . . . . Scanalyzers . | . . . . . . . . . . . . . . . . . Garrison Access . | . . . . . . . . . . . . . . . . . Data Cores Recovered . | . . . . . . . . . . . . . . . . . Used . | . . . . . . . . . . . . . . . . . Hacking Detections 17 | . 3 . . . 3 . . . . . 2 2 2 . 5 . Full Trace Events 3 | . . . . . 2 . . . . . . 1 . . . . Feedback Events . | . . . . . . . . . . . . . . . . . Feedback Blocked . | . . . . . . . . . . . . . . . . . Robot Schematics Acquired . | . . . . . . . . . . . . . . . . . Robots Built . | . . . . . . . . . . . . . . . . . Matter . | . . . . . . . . . . . . . . . . . Time . | . . . . . . . . . . . . . . . . . Total Robot Build Rating . | . . . . . . . . . . . . . . . . . Part Schematics Acquired 1 | . . . . . 1 . . . . . . . . . . . Parts Built . | . . . . . . . . . . . . . . . . . Matter . | . . . . . . . . . . . . . . . . . Time . | . . . . . . . . . . . . . . . . . Total Part Build Rating . | . . . . . . . . . . . . . . . . . Parts Repaired . | . . . . . . . . . . . . . . . . . Time . | . . . . . . . . . . . . . . . . . Parts Recycled . | . . . . . . . . . . . . . . . . . Recycled Matter . | . . . . . . . . . . . . . . . . . Retrieved Matter . | . . . . . . . . . . . . . . . . . Retrieved Components . | . . . . . . . . . . . . . . . . . Parts Scanalyzed 1 | . . . . . 1 . . . . . . . . . . . Part Schematics Acquired 1 | . . . . . 1 . . . . . . . . . . . Parts Damaged . | . . . . . . . . . . . . . . . . . Bothacking | -11 -10 -10 -9 -9 -8 -7 -7 -7 -7 -6 -6 -6 -5 -5 -5 -4 ------------ Run | Scr Mat Min Mat Min Mat Fac Low Low Dat Pro Fac Ext Fac Was Fac Fac Used RIF Installer . | . . . . . . . . . . . . . . . . . Robots Hacked 6 | . . . . . . . . . . . . . . . 6 . Non-combat 5 | . . . . . . . . . . . . . . . 5 . Combat 1 | . . . . . . . . . . . . . . . 1 . Robot Hacks Applied 11 | . . . . . . . . . . . . . . . 11 . parse_system 3 | . . . . . . . . . . . . . . . 3 . no_distress 5 | . . . . . . . . . . . . . . . 5 . find_fabricator 1 | . . . . . . . . . . . . . . . 1 . find_recycling 1 | . . . . . . . . . . . . . . . 1 . find_station 1 | . . . . . . . . . . . . . . . 1 . Relay Couplers Released . | . . . . . . . . . . . . . . . . . Robots Rewired 7 | . . . . . . . . . . . . 7 . . . . Allies Hacked . | . . . . . . . . . . . . . . . . . Hacks Repelled . | . . . . . . . . . . . . . . . . . Allies | -11 -10 -10 -9 -9 -8 -7 -7 -7 -7 -6 -6 -6 -5 -5 -5 -4 -------- Run | Scr Mat Min Mat Min Mat Fac Low Low Dat Pro Fac Ext Fac Was Fac Fac Total Allies 11 | . . . . 3 . . . . . 1 . 7 . . . . Largest Group 7 | . . . . 3 2 . . . . 1 . 7 . . . . Highest-Rated Group 188 | . . . . 73 42 . . . . 94 . 188 . . . . Highest-Rated Ally 94 | . . . . 31 31 . . . . 94 . 37 . . . . Total Orders 7 | . . . . . . . . . . . . 7 . . . . STAY 5 | . . . . . . . . . . . . 5 . . . . FOLLOW 2 | . . . . . . . . . . . . 2 . . . . Ally Attacks 76 | . . . . . 2 . . . . 12 . 62 . . . . Total Damage 1545 | . . . . . 43 . . . . 279 . 1223 . . . . Kills 11 | . . . . . . . . . . 1 . 10 . . . . Allies Corrupted . | . . . . . . . . . . . . . . . . . Allies Melted . | . . . . . . . . . . . . . . . . . Intel | -11 -10 -10 -9 -9 -8 -7 -7 -7 -7 -6 -6 -6 -5 -5 -5 -4 ------- Run | Scr Mat Min Mat Min Mat Fac Low Low Dat Pro Fac Ext Fac Was Fac Fac Robot Analysis Total . | . . . . . . . . . . . . . . . . . Derelict Logs Recovered 4 | . . 1 . 1 . . 1 . . 1 . . . . . . Drone Launches . | . . . . . . . . . . . . . . . . . Drone Recoveries . | . . . . . . . . . . . . . . . . . Exploration | -11 -10 -10 -9 -9 -8 -7 -7 -7 -7 -6 -6 -6 -5 -5 -5 -4 ------------- Run | Scr Mat Min Mat Min Mat Fac Low Low Dat Pro Fac Ext Fac Was Fac Fac Turns Passed 21497 | 278 155 467 353 1809 884 573 3516 1841 1174 2016 1891 1986 776 189 3113 476 Spaces Moved 11396 | 183 110 348 135 1086 365 258 1797 1075 222 1415 1146 1002 338 135 1565 216 Core 215 | 22 . . . . 2 . . . . . . 1 . 61 55 74 Treads 4393 | . . . 33 1086 363 106 1797 259 . 12 31 17 . . 574 115 Legs 5847 | 161 110 348 102 . . 127 . 816 222 1403 253 931 338 74 936 26 Wheels 940 | . . . . . . 25 . . . . 862 53 . . . . Hover 1 | . . . . . . . . . . . . . . . . 1 Flight . | . . . . . . . . . . . . . . . . . Fastest Speed 50 | 50 120 120 150 160 160 120 163 150 150 120 90 100 120 50 120 50 Average Speed 143 | 111 120 120 152 160 162 165 163 153 150 126 103 144 143 113 154 145 Slowest Speed 900 | 120 120 120 160 160 600 210 163 185 150 180 180 900 150 550 350 700 Overloaded Moves . | . . . . . . . . . . . . . . . . . Propulsion Burnouts . | . . . . . . . . . . . . . . . . . Robots Hopped . | . . . . . . . . . . . . . . . . . Cave-ins Triggered . | . . . . . . . . . . . . . . . . . Exploration Rate (%) 42 | 8 24 41 13 99 25 3 95 71 74 91 15 67 8 64 23 3 Regions Visited 16 Branch Regions 7 Pre-discovered Areas 1 | . . . . . . . . . 1 . . . . . . . Known Exits Taken 2 | . . . 1 . . . . . . 1 . . . . . . Unknown Exits Taken 12 | 1 1 1 . 1 1 1 1 1 1 . 1 1 . . 1 . Scrap Searched 8 | . . . . 2 . . 2 . . 4 . . . . . . Spaces Dug 19 | . . . . 1 5 . . . . . . . 8 . 5 . Terrain Destroyed 179 | . . . . 1 21 5 1 9 . 6 1 19 34 5 55 22 Melee . | . . . . . . . . . . . . . . . . . Projectile 98 | . . . . 1 21 5 1 9 . 6 1 18 14 5 14 3 AOE 81 | . . . . . . . . . . . . 1 20 . 41 19 Terrain Rammed . | . . . . . . . . . . . . . . . . . Walls Destroyed . | . . . . . . . . . . . . . . . . . Machines Disabled . | . . . . . . . . . . . . . . . . . Actions | -11 -10 -10 -9 -9 -8 -7 -7 -7 -7 -6 -6 -6 -5 -5 -5 -4 --------- Run | Scr Mat Min Mat Min Mat Fac Low Low Dat Pro Fac Ext Fac Was Fac Fac Total 15264 | 219 133 368 217 1141 552 338 2345 1226 1063 1577 1703 1417 528 147 1979 311 Wait 2439 | . 24 . 11 27 109 10 510 113 842 80 379 125 106 . 102 1 Move 11381 | 182 109 347 134 1085 364 257 1796 1074 221 1414 1145 1001 338 134 1564 216 Hop . | . . . . . . . . . . . . . . . . . Pick Up 219 | 11 . 2 8 11 5 14 5 10 . 14 22 44 8 . 52 13 Fast Attach 38 | . . . . . 3 . 1 . . 3 12 3 3 . 13 . Attach 163 | 7 . . 7 . 3 13 7 3 . 13 16 28 7 1 36 22 Detach 5 | . . . . . . . . . . . 3 . 2 . . . Swap 89 | . . . 2 3 6 3 3 5 . 4 15 21 4 3 20 . Drop 114 | . . 2 3 4 8 4 1 4 . 4 21 26 6 . 27 4 Fire 629 | 19 . 15 52 8 52 32 10 17 . 30 83 61 54 9 156 31 Melee 47 | . . . . . . . 11 . . 15 5 4 . . . 12 Ram 5 | . . . . . . 2 . . . . 2 . . . . 1 Kick 9 | . . 2 . . . 3 . . . . . . . . 1 3 Crush 22 | . . . . 3 2 . . . . . . 1 . . 8 8 Escape Stasis 5 | . . . . . . . . . . . . 5 . . . . Rewire 99 | . . . . . . . 1 . . . . 98 . . . . Trap . | . . . . . . . . . . . . . . . . . Miscellaneous . | . . . . . . . . . . . . . . . . . Route ------- -11/Scrapyard -10/Materials -10/Mines -9/Materials (discovered 2 exits: *Min / [*Sto]) -9/Mines (discovered 2 exits: *Mat x2) -8/Materials -7/Factory -7/Lower Caves -7/Lower Caves (discovered 2 exits: *Fac / *Dat) -7/Data Miner -6/Proximity Caves -6/Factory -6/Extension (discovered 3 exits: *Fac x2 / [*Cet]) -5/Factory -5/Waste -5/Factory -4/Factory History --------- Turn | Location | Event 14 | -11/Scrapyard | Discovered new exit (range 16) 279 | -11/Scrapyard | Entered Materials 318 | -10/Materials | Build established: Mutant 347 | -10/Materials | Discovered new exit (range 16) 434 | -10/Materials | Entered Mines 435 | -10/Mines | Assembled infested the area 557 | -10/Mines | Discovered new exit (range 10) 681 | -10/Mines | Learned location of 1 exit from Materials 901 | -10/Mines | Entered Materials 901 | -9/Materials | Evolved 2 slots: Utility x2 902 | -9/Materials | Identified exit to Mines 902 | -9/Materials | Discovered new exit (range 7) 1072 | -9/Materials | Lost 3 parts (1p2w) 1254 | -9/Materials | Entered Mines 1291 | -9/Mines | Discovered new exit (range 6) 1324 | -9/Mines | Build established: Scavenger-Mutant 1776 | -9/Mines | Learned Materials terminal intel 1825 | -9/Mines | Met a Derelict shopkeep closing up shop 2228 | -9/Mines | Discovered new exit (range 11) 2615 | -9/Mines | Received a Mining Laser from a helpful Derelict 3063 | -9/Mines | Entered Materials 3063 | -8/Materials | Accompanied by 2 allies 3063 | -8/Materials | Evolved 2 slots: Propulsion x2 3064 | -8/Materials | Loaded intel: 12 terminal locations 3068 | -8/Materials | Led the pair of lost Derelicts to an unsafe place 3846 | -8/Materials | Discovered new exit (range 11) 3947 | -8/Materials | Entered Factory 3947 | -7/Factory | Evolved 2 slots: Power x1, Weapon x1 4157 | -7/Factory | Lost 3 parts (3n) 4240 | -7/Factory | Lost 3 parts (2p1n) 4341 | -7/Factory | Discovered new exit (range 21) 4520 | -7/Factory | Entered Lower Caves 4522 | -7/Lower Caves | Learned location of 1 exit from Proximity Caves 4638 | -7/Lower Caves | Lost 3 parts (1p1n1u) 5135 | -7/Lower Caves | Build established: Scavenger-Skirmisher 5573 | -7/Lower Caves | Spotted B-75 Beast 7258 | -7/Lower Caves | Discovered new exit (range 11) 8036 | -7/Lower Caves | Entered another Lower Caves area 8608 | -7/Lower Caves | Discovered new exit (range 14) 9447 | -7/Lower Caves | Discovered new exit (range 12) 9597 | -7/Lower Caves | Spotted B-75 Beast 9877 | -7/Lower Caves | Entered Data Miner 9877 | -7/Data Miner | Discovered new exit (range 6) 9913 | -7/Data Miner | Met Data Miner 10000 | -7/Data Miner | Received God Mode back door access code from Data Miner 10014 | -7/Data Miner | Learned location of Section 7 (-2) 10014 | -7/Data Miner | Acquired the access code to Warlord's prototype stash 11051 | -7/Data Miner | Entered Proximity Caves 11052 | -6/Proximity Caves | Identified exit to Factory 11260 | -6/Proximity Caves | Escorted by Enhanced Grunt 11573 | -6/Proximity Caves | Core integrity fell below 50% 11633 | -6/Proximity Caves | Lost 8 parts (1p4n3w) 11835 | -6/Proximity Caves | Lost 4 parts (1p2n1w) 11853 | -6/Proximity Caves | Build established: Scavenger-Mutant 12311 | -6/Proximity Caves | Build established: Scavenger-Assassin 12771 | -6/Proximity Caves | Spotted B-75 Beast 12780 | -6/Proximity Caves | Core integrity fell below 20% 13067 | -6/Proximity Caves | Entered Factory 13067 | -6/Factory | Evolved 2 slots: Power x1, Utility x1 13254 | -6/Factory | Lost 6 parts (2p1u3w) 13535 | -6/Factory | Build established: Scavenger-Mutant 13851 | -6/Factory | Build established: Scavenger-Skirmisher 14412 | -6/Factory | Discovered new exit (range 21) 14423 | -6/Factory | Build established: Scavenger-Mutant 14958 | -6/Factory | Entered Extension 14970 | -6/Extension | Disrupted transfer network 15024 | -6/Extension | Build established: Generator-Skirmisher 15200 | -6/Extension | Lost 5 parts (2n2u1w) 15361 | -6/Extension | Lost 4 parts (2u2w) 15524 | -6/Extension | Energy Cycler disabled 15524 | -6/Extension | Rescued a captive Derelict 15525 | -6/Extension | Rescued a captive Derelict 15525 | -6/Extension | Rescued a captive Derelict 15526 | -6/Extension | Rescued a captive Derelict 15528 | -6/Extension | Rescued a captive Derelict 15562 | -6/Extension | Lost 3 parts (1u2w) 15738 | -6/Extension | Incoming investigation squad redirected 16385 | -6/Extension | Spotted B-75 Beast 16415 | -6/Extension | Destroyed B-75 Beast 16425 | -6/Extension | Discovered new exit (range 15) 16434 | -6/Extension | Build established: Scavenger-Tank 16699 | -6/Extension | Discovered new exit (range 16) 16700 | -6/Extension | Discovered new exit (range 15) 16944 | -6/Extension | Entered Factory 16944 | -5/Factory | Evolved 2 slots: Propulsion x1, Weapon x1 17015 | -5/Factory | Build established: Scavenger-Skirmisher 17333 | -5/Factory | Garrison activated, responded to threat 17461 | -5/Factory | Build established: Scavenger-Mutant 17720 | -5/Factory | Sucked down chute 17720 | -5/Factory | Entered Waste 17746 | -5/Waste | Spotted C-40 Crusher 17794 | -5/Waste | Spotted C-40 Crusher 17796 | -5/Waste | Spotted C-40 Crusher 17800 | -5/Waste | Spotted C-40 Crusher 17829 | -5/Waste | Spotted C-40 Crusher 17830 | -5/Waste | Crushed by Compactor (1 part destroyed, 2 dropped) 17837 | -5/Waste | Crushed by Compactor (1 part destroyed, 1 dropped) 17840 | -5/Waste | Crushed by Compactor (1 part destroyed, 2 dropped) 17843 | -5/Waste | Crushed by Compactor (1 part destroyed, 2 dropped) 17846 | -5/Waste | Crushed by Compactor (1 part destroyed, 1 dropped) 17852 | -5/Waste | Crushed by Compactor (1 part destroyed, 1 dropped) 17883 | -5/Waste | Lost 7 parts (2n3u2w) 17885 | -5/Waste | Spotted C-40 Crusher 17890 | -5/Waste | Discovered new exit (range 16) 17900 | -5/Waste | Crushed by Compactor (1 part destroyed, 1 dropped) 17909 | -5/Waste | Entered Factory 18269 | -5/Factory | Lost 4 parts (1n1u2w) 18972 | -5/Factory | Core integrity fell below 50% 19050 | -5/Factory | Lost 3 parts (1n2w) 19574 | -5/Factory | Spotted B-75 Beast 19591 | -5/Factory | System corruption reached 10% 20373 | -5/Factory | Build established: Scavenger-Skirmisher 20583 | -5/Factory | Lost 6 parts (1p2u3w) 20787 | -5/Factory | Lost 3 parts (1n2u) 20980 | -5/Factory | Discovered new exit (range 12) 21022 | -5/Factory | Entered another Factory area 21022 | -4/Factory | Evolved 2 slots: Propulsion x1, Utility x1 21178 | -4/Factory | Build established: Scavenger-Mutant 21356 | -4/Factory | Lost 26 parts (3p7n8u8w) 21356 | -4/Factory | Core integrity fell below 50% 21401 | -4/Factory | System corruption reached 10% 21453 | -4/Factory | Core integrity fell below 20% 21498 | -4/Factory | Destroyed by P-70 Sage with Backup Laser III Last Messages --------------- 21476_ Destroyed Tesla Rifle. 21476_ Destroyed Antigrav System. 21476_ Destroyed Imp. Remote Datajack. 21476_ Destroyed Hpw. Shock Rifle. 21476_ Backup Propulsion III destroyed. 21476_ Destroyed Backup Propulsion III. 21476_ Backup Laser III destroyed. 21476_ Destroyed Backup Laser III. 21476_ Adv. Heat Sink destroyed. 21476_ Destroyed Adv. Heat Sink. 21476_ Broken Terrain Scan Processor destroyed. 21476_ Destroyed Broken Terrain Scan Processor. 21476_ Repair Station disabled. 21477_ System corrupted: Substantial component data lost. 21477_ Acquired Mic. Fission Core. 21478_ P-70 Sage heat damages Imp. Target Analyzer. 21481_ Acquired Lgt. Fission Core. 21486_ Dropped Lgt. Fission Core. 21487_ Dropped Mic. Fission Core. 21487_ Dropped Lgt. Fission Core. Map ----- +----------------------------------------------------+ | ?# #?#??####??#???????????????????????????? | | ## ##########????#????????????????????????? | | ## #?#?#?#?????????????????????????? | | ## ##?#????????????????????????????? | | ## ###?????????????????????????????? | | ## #####?#?#???????????????????????? | | ?# #########???????????????????????? | | ######### ## #???????????????????????? | | # # ##"""" #???#???????????????????? | | # " " " # ##"""" #??#????????????????????? | | # " " " + ##"""" #?#??????????????#??????? | | # " " " # ##"""" #???#??????????" ???????? | | # " " " # ## ??##??????????""????????? | | # " " " # #?###+###?#?#???????? ?????????? | | # " " " # ### ############/####### ???? | | # " " " # #"# ??? | | # " " " # !%= ??? | | # " " " " [ ### ??? | | " " ### #######+#######?????????? | | ######### %##### ### p ###????????? | | ###### ##### #?# ; #????????? | | ######""###+"##??##+#?# ; #????????? | | #?## ? ### ; #????????? | | ?### ### ; ##???????? | | #?## ### ; #???????? | | ?#?# ##@ ** ; ##???????? | | ?#?# ### *** ; #????????? | | ##?# #?# ; #????????? | | #### #?# ; #????????? | | ?#?# #?# ###????????? | | ??## #?# #??????????? | | ???##################?##############??????????? | | | | | | | | | | | | | | | | | | | | | | | | | | | | | | | | | | | | | +----------------------------------------------------+ Best States ------------- Heat Dissipation 86 Energy Generation 44 Energy Capacity 695 Matter Stores 300 Matter Capacity 400 Sight Range 16 Robot Scan Range 16 Terrain Scan Range 24 Terrain Scan Density 210 ECM Strength 3 Armor Coverage 450 Core Shielding 30 Propulsion Shielding 33 Evasion (%) 50 Melee Accuracy 8 Recoil Reduction 5 Offensive Hacking 10 Item Schematics ----------------- Lrn. Terrain Scanner | -8/Materials | Scanalyzed Robot Schematics ------------------ None Fabricated ------------ Nothing Alien Tech Used ----------------- None Achievements -------------- Streaker Challenges ------------ None Game ------ Seed MyomerArmorBoomstick Manual? 0 Play Time 03:46:45 Cumulative 85.6 hours Start 2021.11.02 @ 20:05:49 End 2021.11.06 @ 12:55:52 Sessions 3 Manual Loads 0 Difficulty Rogue Special Mode None Game No. 70 Rogue 70 Adventurer 0 Explorer 0 Win Type - Total 0 Types 0/0/0/0/0/0/0/0/0 Lore% 28 Gallery% 45 Achievement% 28 Wizard Run 0 Options --------- ASCII 0 Keyboard 0 Movement Arrows Keybinds 0 Fullscreen 1 Font 14/Terminus Map View 72x54 Tactical HUD 1 Map Filters NONE Filters NONE Steam 1 RUN: be9228b2-06f7-4026-8051-328900cebdbb